Cogmind - Beta 11.1 @@@ ROGUE MODE // 2022.11.16 @ 23:42:58 Player: darki Result: Destroyed by H-61 Shepherd with Heavy Assault Cannon Performance ------------- Evolutions (2) 1000 Regions Visited (7) 1400 Robots Destroyed (68) 340 Value Destroyed (2096) 2096 Prototype IDs (24) 480 Alien Tech Used (0) 0 Bonus (1147) 1147 TOTAL SCORE: 6463 Bonus ------- High Alert Combat Kills 322 Follower Combat Kills 25 Entered Garrisons 200 Used RIF Installer 500 Aligned with FarCom 300 Friendly Fire -200 Cogmind --------- Core Integrity 0/550 Matter 300/300 Energy 98/100 System Corruption 0% Temperature Cool (0) Movement Core (50) Location -8/Materials Parts ------- > --- POWER (1) -------- (None) > --- PROPULSION (2) --- (None) > --- UTILITY (5) ------ Improved Signal Interpreter > --- WEAPON (3) ------- (None) > --- INVENTORY (5) ---- Experimental Sensor Array Kinecellerator Kinecellerator Improved Datajack Peak State ------------ > --- POWER ------------ Nuclear Core > --- PROPULSION ------- Armored Huge Wheel > --- UTILITY ---------- Small Storage Unit Trap Scanner Experimental Sensor Array Kinecellerator Core Shielding > --- WEAPON ----------- AWS/Autocannon > --- INVENTORY -------- Armored Huge Wheel Flight Unit Flight Unit Kinecellerator Kinecellerator Katana [Rating: 61] Favorites ----------- Power Light Ion Engine Engine Light Ion Engine Power Core Nuclear Core Propulsion Aluminum Leg Leg Aluminum Leg Wheel Armored Huge Wheel Utility Small Storage Unit Device Trap Scanner Storage Small Storage Unit Processor Improved Signal Interpreter Protection Light Armor Plating Weapon Assault Rifle Energy Gun EM Pulse Gun Ballistic Gun Assault Rifle Ballistic Cannon AWS/Autocannon Slashing Weapon Katana Build | -11 -10 -10 -10 -9 -8 -8 -8 ------- Run | Scr Mat Min Exi Min Mat Gar Mat Slots Evolved 4 | . . . . . 4 . . Power . | . . . . . . . . Propulsion . | . . . . . . . . Utility 3 | . . . . . 3 . . Weapon 1 | . . . . . 1 . . Parts Attached 22 | . 3 2 . 4 8 1 4 Power 4 | . . 1 . 1 1 1 . Engine 3 | . . 1 . 1 . 1 . Core 1 | . . . . . 1 . . Reactor . | . . . . . . . . Propulsion 4 | . . 1 . 1 1 . 1 Treads . | . . . . . . . . Leg 2 | . . 1 . 1 . . . Wheel 2 | . . . . . 1 . 1 Hover . | . . . . . . . . Flight . | . . . . . . . . Utility 10 | . 2 . . 1 5 . 2 Device 3 | . . . . . 3 . . Storage . | . . . . . . . . Processor 1 | . . . . . 1 . . Hackware . | . . . . . . . . Protection 6 | . 2 . . 1 1 . 2 Artifact . | . . . . . . . . Weapon 4 | . 1 . . 1 1 . 1 Energy Gun . | . . . . . . . . Energy Cannon . | . . . . . . . . Ballistic Gun 1 | . 1 . . . . . . Ballistic Cannon 1 | . . . . . 1 . . Launcher . | . . . . . . . . Special Weapon . | . . . . . . . . Impact Weapon . | . . . . . . . . Slashing Weapon 2 | . . . . 1 . . 1 Piercing Weapon . | . . . . . . . . Special Melee Weapon . | . . . . . . . . Unidentified Prototypes 1 | . . . . . 1 . . Parts Lost 12 | . . . . 1 . 2 9 Power 3 | . . . . 1 . 1 1 Propulsion 2 | . . . . . . . 2 Utility 6 | . . . . . . 1 5 Weapon 1 | . . . . . . . 1 Highest Loss Streak 7 | . . . . 1 . 1 7 To Critical Strikes . | . . . . . . . . Average Slot Usage (%) 86 | . 96 100 100 99 71 61 63 Engine 9 | . 14 14 14 13 . 2 7 Core 1 | . . . . . 8 4 . Leg 16 | . 28 28 28 28 . . . Wheel 3 | . . . . . 8 9 9 Device 6 | . . . . . 18 18 16 Storage 11 | . 14 14 14 14 9 9 9 Processor 3 | . . . . . 7 9 9 Protection 10 | . 10 14 14 14 8 . 4 Ballistic Gun 16 | . 24 28 28 27 . . . Ballistic Cannon 3 | . . . . . 8 9 7 Naked Turns . | . . . . . . . . Heaviest Build 85 | 12 14 20 20 20 85 85 85 Greatest Support 28 | 20 20 25 25 25 28 28 28 Greatest Overweight (x) 3 | . . . . . 3 3 3 Average Overweight (x) . | . . . . . 2 2 1 Largest Inventory Capacity 8 | . 8 8 8 8 8 8 8 Average Capacity 7 | . 8 8 8 8 8 8 7 Most Carried 8 | . 8 8 8 8 8 8 8 Average Carried 7 | . 6 7 7 7 7 8 6 Final Capacity 8 | 8 8 8 8 8 8 8 5 Final Carried 8 | 6 7 8 8 8 8 8 4 Class Distribution -------------------- 69% | Mutant 27% | Skirmisher Dominant Class ---------------- Mutant | -10/Materials Mutant | -10/Mines Mutant | -10/Exiles Mutant | -9/Mines Mutant | -8/Materials Skirmisher | -8/Garrison Skirmisher | -8/Materials Resources | -11 -10 -10 -10 -9 -8 -8 -8 ----------- Run | Scr Mat Min Exi Min Mat Gar Mat Matter Collected 599 | 200 122 44 . 126 80 . 27 Remotely . | . . . . . . . . Salvage Created 1864 | . 295 63 . 360 421 501 224 Parts 105 | . 23 3 . 18 25 19 17 Haulers Intercepted 1 | . . . . . 1 . . Recyclers Shooed . | . . . . . . . . Parts Field Recycled . | . . . . . . . . Retrieved Matter . | . . . . . . . . Parts Self-Destructed . | . . . . . . . . Prevented . | . . . . . . . . Kills | -11 -10 -10 -10 -9 -8 -8 -8 ------- Run | Scr Mat Min Exi Min Mat Gar Mat Combat Hostiles Destroyed 60 | . 9 . . 8 17 19 7 Melee 7 | . . . . 3 . . 4 Guns 14 | . 9 . . 5 . . . Cannons 39 | . . . . . 17 19 3 Classes Destroyed 13 | . 3 . . 3 4 1 2 Worker 1 | . . . . 1 . . . Builder 2 | . . . . 1 1 . . Hauler 1 | . . . . . 1 . . Recycler 1 | . 1 . . . . . . Operator 1 | . . . . . 1 . . Watcher 1 | . . . . . 1 . . Swarmer 19 | . 6 . . . 7 3 3 Grunt 29 | . 3 . . 7 6 13 . Brawler 1 | . . . . . . 1 . Duelist 4 | . . . . 1 2 1 . Sentry 5 | . . . . . 2 1 2 Specialist 1 | . . . . . . . 1 Hunter 1 | . . . . . . . 1 Thug 1 | . . 1 . . . . . Best Kill Streak 6 | . 6 . . 4 6 6 3 Combat Bots Only 6 | . 6 . . 3 6 6 3 Max Kills in Single Turn 1 | . 1 1 . 1 1 1 1 Gunslinging . | . . . . . . . . Exploded . | . . . . . . . . Melee 1 | . . . . 1 . . 1 Uniques/NPCs Destroyed . | . . . . . . . . Combat | -11 -10 -10 -10 -9 -8 -8 -8 -------- Run | Scr Mat Min Exi Min Mat Gar Mat Damage Taken 2946 | . 258 . . 554 341 306 1487 Core 803 | . 21 . . 211 53 57 461 Absorbed by Shields . | . . . . . . . . Redirected to Shielding 7 | . . . . 7 . . . Core Remaining (%) 53 | 100 . . . 7 . . . Volleys Fired 52 | . 23 6 . 23 . . . Largest 2 | . 2 2 . 2 . . . Hottest 40 | . 40 40 . 40 . . . Shots Fired 197 | . 46 12 . 45 48 41 5 Gun 103 | . 46 12 . 45 . . . Cannon 94 | . . . . . 48 41 5 Launcher . | . . . . . . . . Special . | . . . . . . . . Kinetic 197 | . 46 12 . 45 48 41 5 Thermal . | . . . . . . . . Explosive . | . . . . . . . . Electromagnetic . | . . . . . . . . Robot Hit Streak 23 | . 9 9 . 13 12 23 15 Robot Miss Streak 4 | . 4 2 . 2 2 4 2 Penetration Max . | . . . . . . . . Secondary Targets . | . . . . . . . . Autonomous 95 | . . . . . 48 41 6 Shots Hit Robots 166 | . 28 9 . 40 35 37 17 Core Hits 76 | . 15 4 . 16 19 15 7 Critical Kills . | . . . . . . . . Critical Parts Destroyed . | . . . . . . . . Critical Strikes 9 | . . . . 1 3 4 1 Blast 7 | . . . . . 3 4 . Sever 2 | . . . . 1 . . 1 Melee Attacks 26 | . . . . 9 . . 17 Impact . | . . . . . . . . Slashing 26 | . . . . 9 . . 17 Piercing . | . . . . . . . . Sneak Attacks 1 | . . . . 1 . . . Combat Hostiles . | . . . . . . . . Follow-up Attacks . | . . . . . . . . Damage Inflicted 8383 | . 295 109 . 612 3222 3452 693 Guns 745 | . 295 109 . 341 . . . Cannons 6939 | . . . . . 3222 3426 291 Explosions . | . . . . . . . . Melee 673 | . . . . 271 . . 402 Ramming 26 | . . . . . . 26 . Kinetic 7684 | . 295 109 . 341 3222 3426 291 Thermal . | . . . . . . . . Explosive . | . . . . . . . . Electromagnetic . | . . . . . . . . Impact . | . . . . . . . . Slashing 673 | . . . . 271 . . 402 Piercing . | . . . . . . . . Highest Corruption . | . . . . . . . . Average Corruption . | . . . . . . . . Corruption Purged . | . . . . . . . . Corruption Blocked . | . . . . . . . . Overload Shots . | . . . . . . . . Overflow Damage 962 | . . . . 28 415 519 . Projectiles 934 | . . . . . 415 519 . Explosions . | . . . . . . . . Melee 28 | . . . . 28 . . . Knockbacks 17 | . . . . . 6 11 . Impact . | . . . . . . . . Kinetic 16 | . . . . . 6 10 . Secondary 1 | . . . . . . 1 . Self-Inflicted Damage 13 | . . . . . . 13 . Shots . | . . . . . . . . Rammed 1 | . . . . . . 1 . Targets Rammed 1 | . . . . . . 1 . Kicked . | . . . . . . . . Crushed . | . . . . . . . . Highest Temperature 93 | . 24 6 . 93 . . . Average Temperature 21 | . 8 4 . 36 . . . Received Heat Transfer 618 | . 66 . . 237 117 126 72 Siege Activations . | . . . . . . . . Robots Corrupted . | . . . . . . . . Combat Hostiles . | . . . . . . . . Parts Fried . | . . . . . . . . Impact Corruptions 1 | . . . . . . 1 . Robots Melted . | . . . . . . . . Combat Hostiles . | . . . . . . . . Parts Melted . | . . . . . . . . Heat Transferred . | . . . . . . . . Parts Sabotaged . | . . . . . . . . Parts Stolen . | . . . . . . . . Parts Stripped . | . . . . . . . . Power Chain Reactions . | . . . . . . . . Missiles Intercepted . | . . . . . . . . Alert | -11 -10 -10 -10 -9 -8 -8 -8 ------- Run | Scr Mat Min Exi Min Mat Gar Mat Peak Influence 908 | . 286 111 . 150 489 908 442 Initial 442 | . . 111 . . 25 317 442 Average 187 | . 115 82 . 7 117 721 402 Maximum Alert Level 3 | . 1 . . . 2 3 2 Low Security (%) 68 | . 73 100 . 100 78 . . Level 1 11 | . 26 . . . 19 18 28 Level 2 12 | . . . . . 1 17 71 Level 3 8 | . . . . . . 63 . Level 4 . | . . . . . . . . Level 5 . | . . . . . . . . High Security . | . . . . . . . . Max Security . | . . . . . . . . Squads Dispatched 5 | . 1 . . . 2 . 2 Investigation 2 | . . . . . 2 . . Extermination . | . . . . . . . . Reinforcement 3 | . 1 . . . . . 2 Assault . | . . . . . . . . Garrison . | . . . . . . . . Intercept . | . . . . . . . . Searches Triggered . | . . . . . . . . Construction Impeded . | . . . . . . . . Haulers Reinforced . | . . . . . . . . Active Scanning Responses . | . . . . . . . . Cargo Convoy Interrupts . | . . . . . . . . Stealth | -11 -10 -10 -10 -9 -8 -8 -8 --------- Run | Scr Mat Min Exi Min Mat Gar Mat Distress Signals 2 | . 2 . . . . . . Communications Jammed . | . . . . . . . . Distress Signals . | . . . . . . . . Times Spotted 78 | . 15 . . 9 24 22 8 Peak Tracking Total 6 | . 5 . . 3 6 4 4 Tactical Retreats 8 | . 2 . . . 2 4 . Traps | -11 -10 -10 -10 -9 -8 -8 -8 ------- Run | Scr Mat Min Exi Min Mat Gar Mat Traps Triggered 4 | . . . . . . 4 . Indirectly . | . . . . . . . . Trap Hack Attempts . | . . . . . . . . Triggered . | . . . . . . . . Disarmed . | . . . . . . . . Reprogrammed . | . . . . . . . . Reused . | . . . . . . . . Traps Extracted . | . . . . . . . . Installed . | . . . . . . . . Triggered . | . . . . . . . . Machines | -11 -10 -10 -10 -9 -8 -8 -8 ---------- Run | Scr Mat Min Exi Min Mat Gar Mat Machines Disabled 2 | . . . . . 1 1 . Max in Single Turn 1 | . . . . . 1 1 . Machines Sabotaged . | . . . . . . . . Garrisons Compromised . | . . . . . . . . Overloaded Fab Kills . | . . . . . . . . Hacking | -11 -10 -10 -10 -9 -8 -8 -8 --------- Run | Scr Mat Min Exi Min Mat Gar Mat Machines Accessed 8 | . 1 . 2 . 5 . . Terminals 5 | . 1 . . . 4 . . Fabricators . | . . . . . . . . Repair Stations . | . . . . . . . . Recycling Units . | . . . . . . . . Scanalyzers . | . . . . . . . . Garrison Access 1 | . . . . . 1 . . Total Hacks 48 | . 6 . 24 . 18 . . Successful 34 | . 1 . 24 . 9 . . Failed 14 | . 5 . . . 9 . . Catastrophic 3 | . 2 . . . 1 . . Database Lockouts . | . . . . . . . . Manual 19 | . 6 . 1 . 12 . . Terminals 23 | . 6 . . . 17 . . Fabricators . | . . . . . . . . Repair Stations . | . . . . . . . . Recycling Units . | . . . . . . . . Scanalyzers . | . . . . . . . . Garrison Access 1 | . . . . . 1 . . Terminal Hacks 29 | . 1 . 24 . 4 . . Record 23 | . . . 23 . . . . Branch Access Points 1 | . 1 . . . . . . Transport Status 1 | . . . . . 1 . . Hauler Manifests 1 | . . . . . 1 . . Zone Layout 2 | . . . . . 2 . . EX-Prototype ID Bank 1 | . . . 1 . . . . Fabricator Hacks . | . . . . . . . . Repair Station Hacks . | . . . . . . . . Recycling Unit Hacks . | . . . . . . . . Scanalyzer . | . . . . . . . . Garrison Access Hacks 1 | . . . . . 1 . . Unlock Access 1 | . . . . . 1 . . Unauthorized Hacks 4 | . . . . . 4 . . Terminals 4 | . . . . . 4 . . Botnet 4 | . . . . . 4 . . Fabricators . | . . . . . . . . Repair Stations . | . . . . . . . . Recycling Units . | . . . . . . . . Scanalyzers . | . . . . . . . . Garrison Access . | . . . . . . . . Data Cores Recovered 1 | . . . . . 1 . . Used . | . . . . . . . . Hacking Detections 5 | . 1 . . . 4 . . Full Trace Events 3 | . 1 . . . 2 . . Feedback Events . | . . . . . . . . Feedback Blocked . | . . . . . . . . Robot Schematics Acquired . | . . . . . . . . Robots Built . | . . . . . . . . Authchips . | . . . . . . . . Time . | . . . . . . . . Total Robot Build Rating . | . . . . . . . . Part Schematics Acquired . | . . . . . . . . Parts Built . | . . . . . . . . Authchips . | . . . . . . . . Time . | . . . . . . . . Total Part Build Rating . | . . . . . . . . Parts Repaired . | . . . . . . . . Time . | . . . . . . . . Parts Recycled . | . . . . . . . . Recycled Matter . | . . . . . . . . Retrieved Matter . | . . . . . . . . Retrieved Components . | . . . . . . . . Parts Scanalyzed . | . . . . . . . . Part Schematics Acquired . | . . . . . . . . Parts Damaged . | . . . . . . . . Bothacking | -11 -10 -10 -10 -9 -8 -8 -8 ------------ Run | Scr Mat Min Exi Min Mat Gar Mat Used RIF Installer 1 | . . . . . . 1 . Robots Hacked . | . . . . . . . . Non-combat . | . . . . . . . . Combat . | . . . . . . . . Robot Hacks Applied . | . . . . . . . . Relay Couplers Released . | . . . . . . . . Fabnet Peak Effective % . | . . . . . . . . Robots Rewired . | . . . . . . . . Allies Hacked . | . . . . . . . . Hacks Repelled . | . . . . . . . . Allies | -11 -10 -10 -10 -9 -8 -8 -8 -------- Run | Scr Mat Min Exi Min Mat Gar Mat Total Allies 3 | . . 1 . 2 . . . Largest Group 2 | . . 1 . 2 . . . Highest-Rated Group 45 | . . 31 . 45 . . . Highest-Rated Ally 31 | . . 31 . 31 . . . Total Orders . | . . . . . . . . Ally Attacks 8 | . . . . 8 . . . Total Damage 85 | . . . . 85 . . . Kills 1 | . . . . 1 . . . Allies Corrupted . | . . . . . . . . Allies Melted . | . . . . . . . . Intel | -11 -10 -10 -10 -9 -8 -8 -8 ------- Run | Scr Mat Min Exi Min Mat Gar Mat Robot Analysis Total . | . . . . . . . . Derelict Logs Recovered 4 | . . 1 . 3 . . . Drone Launches . | . . . . . . . . Drone Recoveries . | . . . . . . . . Exploration | -11 -10 -10 -10 -9 -8 -8 -8 ------------- Run | Scr Mat Min Exi Min Mat Gar Mat Turns Passed 4521 | . 277 539 293 1606 676 531 599 Spaces Moved 2229 | 1 148 419 240 605 362 335 119 Core 2 | . . . . . . . 2 Treads . | . . . . . . . . Legs 1420 | 1 148 419 240 605 7 . . Wheels 807 | . . . . . 355 335 117 Hover . | . . . . . . . . Flight . | . . . . . . . . Fastest Speed 50 | 120 120 120 120 120 120 130 50 Average Speed 124 | 120 120 120 120 120 138 131 117 Slowest Speed 260 | 120 120 120 120 120 260 145 145 Overloaded Moves . | . . . . . . . . Propulsion Burnouts . | . . . . . . . . Robots Hopped . | . . . . . . . . Cave-ins Triggered . | . . . . . . . . Exploration Rate (%) 49 | 2 22 96 60 97 53 52 13 Regions Visited 7 Branch Regions 3 Pre-discovered Areas 1 | . . . 1 . . . . Known Exits Taken 2 | . 1 . . . 1 . . Unknown Exits Taken 4 | 1 . 1 1 1 . . . Scrap Searched 3 | . . 1 . 2 . . . Spaces Dug 1 | . . . . . . . 1 Terrain Destroyed 17 | . . . . . 11 3 3 Melee 1 | . . . . . . . 1 Projectile 16 | . . . . . 11 3 2 AOE . | . . . . . . . . Terrain Rammed . | . . . . . . . . Walls Destroyed . | . . . . . . . . Machines Disabled . | . . . . . . . . Actions | -11 -10 -10 -10 -9 -8 -8 -8 --------- Run | Scr Mat Min Exi Min Mat Gar Mat Total 3848 | . 206 446 247 1430 539 426 554 Wait 1451 | . 25 13 . 788 157 58 410 Move 2223 | . 147 418 239 604 362 334 119 Hop . | . . . . . . . . Pick Up 15 | . 5 3 3 . 3 . 1 Fast Attach 11 | . . . . 2 6 1 2 Attach 6 | . 1 . . 1 2 . 2 Detach 2 | . . . . . 2 . . Swap 5 | . 2 2 . 1 . . . Drop 24 | . 3 4 5 2 7 . 3 Fire 52 | . 23 6 . 23 . . . Melee 26 | . . . . 9 . . 17 Ram 1 | . . . . . . 1 . Kick . | . . . . . . . . Crush . | . . . . . . . . Escape Stasis 32 | . . . . . . 32 . Rewire . | . . . . . . . . Trap . | . . . . . . . . Miscellaneous . | . . . . . . . . Route ------- -11/Scrapyard -10/Materials -10/Mines (discovered 3 exits: [*Mat x2] / *Exi) -10/Exiles -9/Mines -8/Materials -8/Garrison (discovered 3 exits: *Mat x3) -8/Materials History --------- Turn | Location | Event 1 | -11/Scrapyard | Discovered new exit (range 0) 1 | -11/Scrapyard | Entered Materials 39 | -10/Materials | Identified exit to Mines 278 | -10/Materials | Entered Mines 300 | -10/Mines | Build established: Mutant 422 | -10/Mines | Discovered new exit (range 11) 429 | -10/Mines | Received a Rocket Launcher from a helpful Derelict 472 | -10/Mines | Learned Materials trap positions 552 | -10/Mines | Discovered new exit (range 6) 566 | -10/Mines | Received a Mining Laser from a helpful Derelict 627 | -10/Mines | Found a damaged Exp. Sensor Array with a note attached 630 | -10/Mines | Found Prototype Device 782 | -10/Mines | Deemed a non-threat by the Exiles lab entrance 782 | -10/Mines | Discovered new exit (range 5) 817 | -10/Mines | Entered Exiles 846 | -10/Exiles | Met 8R-AWN 867 | -10/Exiles | Met EX-HEX 900 | -10/Exiles | Met EX-BIN 913 | -10/Exiles | Aligned with FarCom system 915 | -10/Exiles | Given EX-Vault access code 942 | -10/Exiles | Opened EX-Vault 953 | -10/Exiles | Found AWS/Autocannon 1017 | -10/Exiles | Warned to stay clear of 0b10 Research branches 1052 | -10/Exiles | Met EX-DEC 1057 | -10/Exiles | Learned location of Zion (-7) 1099 | -10/Exiles | Discovered new exit (range 10) 1110 | -10/Exiles | Left Exiles lab with AWS/Autocannon 1110 | -10/Exiles | Entered Mines 1392 | -9/Mines | Learned Materials garrison access intel 1647 | -9/Mines | Learned Materials emergency access door positions 1709 | -9/Mines | Learned Materials terminal intel 2571 | -9/Mines | Core integrity fell below 50% 2684 | -9/Mines | Core integrity fell below 20% 2710 | -9/Mines | Discovered new exit (range 5) 2716 | -9/Mines | Entered Materials 2716 | -8/Materials | Evolved 4 slots: Utility x3, Weapon x1 2717 | -8/Materials | Loaded intel: 22 trap records 2719 | -8/Materials | Loaded intel: 12 terminal locations 2720 | -8/Materials | Loaded intel: 1 garrison access location 2723 | -8/Materials | Identified Exp. Sensor Array 3392 | -8/Materials | Identified exit to Garrison 3392 | -8/Materials | Entered Garrison 3422 | -8/Garrison | Triggered checkpoint 3522 | -8/Garrison | Triggered checkpoint 3567 | -8/Garrison | Build established: Skirmisher 3626 | -8/Garrison | Discovered new exit (range 13) 3687 | -8/Garrison | Triggered checkpoint 3804 | -8/Garrison | Discovered new exit (range 11) 3891 | -8/Garrison | Discovered new exit (range 9) 3910 | -8/Garrison | Identified exit to Materials 3918 | -8/Garrison | Installed Relay Interface Framework 3923 | -8/Garrison | Entered Materials 4503 | -8/Materials | Core integrity fell below 50% 4519 | -8/Materials | Core integrity fell below 20% 4522 | -8/Materials | Destroyed by H-61 Shepherd with Heavy Assault Cannon Last Messages --------------- 04500_ Arm. Huge Wheel destroyed. 04500_ X-57 Shotgunner destroyed. 04501_ Trap Scanner destroyed. 04502_ Penetrated by Slug. 04504_ Acquired 2 matter. 04504_ Slug penetrates Matter Filter. 04505_ Acquired 2 matter. 04506_ Knocked back. 04512_ H-61 Shepherd calls for reinforcements. 04512_ ALERT: Hostile activity reported, dispatching reinforcements to area. 04514_ Penetrated by Slug. 04514_ Acquired Hrd. Medium Armor Plating. 04516_ Knocked back. 04517_ Acquired 3 matter. 04518_ Hrd. Medium Armor Plating destroyed. 04520_ Katana destroyed. 04520_ Arm. Huge Wheel destroyed. 04520_ Knocked back. 04521_ Sml. Storage Unit destroyed. Map ----- +----------------------------------------------------+ | ?????????????????????????????????????????????????? | | ?????????????????????????????????????????????????? | | ?????????????????????????????????????????????????? | | ?????????????????????????????????????????????????? | | ?????????????????????????????????????????????????? | | ?????????????????????????????????????????????????? | | ?????????????????????????????????????????????????? | | ?????????????????????????????????????????????????? | | ?????????????????????????????????????????????????? | | ?????????????????????????????????????????????????? | | ????????????????????????? ?????????????????????? | | ????????????????????????? #????????????????????? | | ????????????????????????? #????????????????????? | | ????????????????????????? #????????????????????? | | ????????????????????????? #????????????????????? | | ????????????????????????? #????????????????????? | | ????????????????????????? #????????????????????? | | ????????????????????????+ #????????????????????? | | ????????????????????????# #????????????????????? | | ????????????????????????# #????????????????????? | | ?????????????############ ##???????????????????? | | ?????????????# # ###+#######?????????? | | ?????????????# # [ ?????????? | | ?????????????# """"""" + ????????? | | ?????????????# """""""x# ????????????? | | ?????????????# """""""!; @% #???????????????????? | | ?????????????# """"""H %######???????????????????? | | ?????????????# """""" [##????????????????????????? | | ?????????????# %%=%#?????????????????????????? | | ?????????????#######%%#"#????????????????????????? | | ???????????????????#%####????????????????????????? | | ???????????????????#%#???????????????????????????? | | ???????????????????#=#???????????????????????????? | | ???????????????????#=#???????????????????????????? | | ???????????????????#[#???????????????????????????? | | ???????????????????#%#???????????????????????????? | | ?????????????????###!###?????????????????????????? | | ?????????????????# ! #################?????????? | | ?????????????????# ????????? | | ?????????????????# ????????? | | ?????????????????# ????????? | | ?????????????????# ###/##########????????????? | | ?????????????????####### #?????????????????? | | ???????????????????????#""" = #?????????????????? | | ???????????????????????#""" #?????????????????? | | ???????????????????????#""" #?????????????????? | | ?????????????????????### #?????????????????? | | ?????????????????????#%####+####?????????????????? | | ?????????????????????#!= #??????????????????? | | ?????????????????????#! """#??????????????????? | +----------------------------------------------------+ Best States ------------- Heat Dissipation 31 Energy Generation 18 Energy Capacity 240 Matter Stores 300 Matter Capacity 300 Sight Range 16 Robot Scan Range 20 Terrain Scan Density 10 Armor Coverage 225 Core Shielding 20 Evasion (%) 55 Kinecelleration 30 Item Schematics ----------------- None Robot Schematics ------------------ None Fabricated ------------ Nothing Alien Tech Used ----------------- None Achievements -------------- None Challenges ------------ None Game ------ Seed SiegeSystemSaw Manual? 0 Play Time 00:34:54 Cumulative 126.2 hours Start 2022.11.16 @ 20:09:12 End 2022.11.16 @ 23:42:58 Sessions 1 Manual Loads 0 Difficulty Rogue Special Mode None Game No. 140 Rogue 140 Adventurer 0 Explorer 0 Win Type - Total 0 Types 0/0/0/0/0/0/0/0/0 Lore% 53 Gallery% 68 Achievement% 53 Wizard Run 0 Options --------- ASCII 0 Keyboard 0 Movement Mouse Keybinds 0 Fullscreen 1 Font 18/SmallcapsGlow Map View 76x50 Tactical HUD 1 Map Filters NONE Filters NONE Steam 1 RUN: 4abed51b-3bbd-4a12-ae46-9a9819879eef